bitfinex/quotes_SOLUSD_20260114
["timestamp","ask_amount","ask_price","bid_price","bid_amount"]
[1768427649436,16.31597425,146.73,146.7,0.1]
[1768427649738,3.89597425,146.71,146.69,0.8023907]
[1768427650458,3.99497425,146.69,146.67,0.1]
[1768427650672,3.96497426,146.69,146.67,0.1]
[1768427651039,0.03900002,146.69,146.67,0.1]
[1768427651367,19.23679664,146.7,146.66,6.38805839]
[1768427651534,3.89597425,146.69,146.66,6.38805839]
[1768427651734,3.86597426,146.69,146.66,6.38805839]
[1768427652142,23.13277089,146.7,146.66,6.38805839]
[1768427652379,16.31597425,146.7,146.67,0.7023907]
[1768427652856,10.71187498,146.72,146.67,0.7023907]
[1768427653165,12.519,146.71,146.67,0.7023907]
[1768427653352,16.41497425,146.71,146.67,0.7023907]
[1768427655457,3.89597425,146.7,146.67,0.7023907]
[1768427655635,23.23143153,146.71,146.67,0.7023907]
[1768427656052,0.10338957,146.69,146.66,7.09044909]
[1768427656244,3.99936382,146.69,146.66,6.38805839]
[1768427656442,3.99936382,146.69,146.65,15.75383234]
[1768427656642,36.27687715,146.71,146.63,72.7014678]
[1768427656643,4.59854796,146.66,146.63,0.4858674]
[1768427657264,0.63578563,146.65,146.63,0.4858674]
[1768427657468,0.63578563,146.65,146.6,6.82093339]
[1768427657676,0.63578563,146.65,146.52,65.05460623]
[1768427657677,0.50190583,146.6,146.49,6.18330524]
[1768427657967,0.099,146.5,146.4,3.55660297]
[1768427658260,3.89597425,146.5,146.46,0.7023907]
[1768427658464,3.89597425,146.49,146.43,0.7023907]
[1768427658667,5.34408856,146.53,146.44,0.7023907]
[1768427658840,3.89597425,146.48,146.44,0.7023907]
[1768427659580,6.82733665,146.47,146.44,0.7023907]
[1768427659778,27.79165253,146.47,146.43,0.7023907]
[1768427660065,0.66603218,146.43,146.35,12.42]
[1768427660249,12.42,146.46,146.35,16.31597425]
[1768427660250,4.59781716,146.42,146.35,16.31597425]
[1768427660451,0.68107777,146.43,146.33,0.4657123]
[1768427660644,0.68107777,146.44,146.38,3.89597425]
[1768427660849,0.68107777,146.44,146.39,3.89597425]
[1768427661163,0.68107777,146.44,146.35,23.91521797]
[1768427661361,0.68185518,146.42,146.37,3.89597425]
[1768427661656,0.68617814,146.4,146.36,3.89597425]
[1768427662040,0.68617814,146.4,146.36,4.6186723]
[1768427662239,0.68617814,146.4,146.34,0.72269805]
[1768427662447,0.68622181,146.45,146.39,3.89597425]
[1768427662651,0.68185518,146.44,146.41,3.89597425]
[1768427662972,0.68189841,146.42,146.37,3.89597425]
[1768427663338,0.68194078,146.4,146.33,0.4657123]
[1768427663562,0.6860934,146.38,146.33,5.0843846]
[1768427663763,0.6860934,146.38,146.33,1.18841035]
[1768427663945,0.6860934,146.38,146.33,5.0843846]
[1768427664147,0.6819823,146.37,146.33,0.4657123]
[1768427664655,0.6819823,146.37,146.31,4.6186723]
[1768427664656,0.68605229,146.35,146.29,4.6186723]
[1768427664864,0.68605229,146.35,146.3,4.6186723]
[1768427665165,0.68605229,146.35,146.28,15.93652839]
[1768427665166,0.68617814,146.39,146.32,0.72269805]
[1768427665460,0.68189841,146.38,146.32,0.72269805]
[1768427665663,0.68194078,146.36,146.29,7.55843528]
[1768427665965,0.68194078,146.36,146.29,4.6186723]
[1768427666165,0.6860934,146.35,146.31,3.89597425]
[1768427666561,0.6860934,146.35,146.29,0.72269805]
[1768427666762,6.83202025,146.37,146.29,0.72269805]
[1768427666763,0.68622181,146.37,146.33,3.89597425]
[1768427667266,5.06863395,146.43,146.36,3.89597425]
[1768427667465,0.68185518,146.42,146.33,12.44]
[1768427667674,0.68185518,146.42,146.37,3.89597425]
[1768427667843,0.68185518,146.42,146.34,0.72269805]
[1768427668042,0.68185518,146.42,146.37,3.89597425]
[1768427668547,0.68185518,146.42,146.36,11.45070943]
[1768427668742,0.68185518,146.42,146.37,3.89597425]
[1768427668954,0.68185518,146.42,146.37,10.7278938]
[1768427669755,0.68185518,146.42,146.38,3.89597425]
[1768427670647,0.68185518,146.42,146.38,10.7274204]
[1768427670863,0.68185518,146.42,146.38,6.83144615]
[1768427671062,0.68185518,146.42,146.38,10.7274204]
[1768427671269,4.38241214,146.43,146.4,4.6186723]
[1768427671448,4.38241214,146.43,146.38,6.83144615]
[1768427671449,4.38241214,146.43,146.41,4.6186723]
[1768427671844,4.38241214,146.43,146.39,0.72269805]
[1768427672381,4.38241214,146.43,146.4,0.72269805]
[1768427672569,4.38241214,146.43,146.41,3.89597425]
[1768427673071,4.38241214,146.43,146.4,7.5530269]
[1768427673272,4.38241214,146.43,146.4,11.44900115]
[1768427673664,0.68189841,146.42,146.36,0.72269805]
[1768427673870,0.68189841,146.42,146.38,10.72744685]
[1768427674277,0.68189841,146.42,146.34,6.83301171]
[1768427674458,0.68189841,146.42,146.35,7.55527513]
[1768427674779,0.68622181,146.42,146.37,6.83198987]
[1768427674982,0.68622181,146.42,146.37,11.45066217]
[1768427675154,4.38241214,146.43,146.39,0.72269805]
[1768427675354,5.06426732,146.43,146.39,0.72269805]
[1768427675578,5.06426732,146.43,146.38,4.6186723]
[1768427676075,5.06426732,146.43,146.38,0.72269805]
[1768427676472,5.06426732,146.43,146.38,4.6186723]
[1768427676658,5.06426732,146.43,146.38,0.72269805]
[1768427677470,4.38241214,146.43,146.4,0.72269805]
[1768427678169,4.38241214,146.43,146.38,7.55389787]
[1768427678481,0.68194078,146.4,146.34,7.55600654]
[1768427678676,0.6860934,146.39,146.34,7.55600654]
[1768427678977,0.68185518,146.4,146.34,11.45193047]
[1768427679151,0.68185518,146.4,146.35,0.72269805]
[1768427679350,4.57782943,146.4,146.35,7.55542793]
[1768427679567,0.68185518,146.4,146.35,7.55542793]
[1768427679764,4.57782943,146.4,146.35,7.55542793]
[1768427680275,0.68622181,146.42,146.36,0.72269805]
[1768427680578,4.38241214,146.43,146.39,0.72269805]
[1768427680884,3.89597425,146.42,146.39,0.72269805]
[1768427681180,4.38241214,146.43,146.39,0.72269805]
[1768427681659,0.68189841,146.42,146.37,0.72269805]
[1768427681858,0.68189841,146.42,146.38,0.72269805]
[1768427682177,4.38241214,146.43,146.38,0.72269805]
[1768427682359,4.38241214,146.43,146.39,0.72269805]
[1768427682879,11.89360062,146.43,146.38,4.6186723]
[1768427683078,11.89353621,146.43,146.38,4.6186723]
[1768427683589,5.06426732,146.43,146.39,0.72269805]
[1768427684094,0.68613534,146.4,146.35,0.72269805]
[1768427684384,0.68194078,146.39,146.35,0.72269805]
[1768427685454,0.68194078,146.39,146.35,7.55547989]
[1768427686164,0.68185518,146.4,146.35,0.72269805]
[1768427686583,0.68185518,146.4,146.35,7.55546555]
[1768427688566,0.68185518,146.4,146.34,3.89597425]
[1768427688567,0.68617814,146.39,146.34,0.72269805]
[1768427688790,4.58215239,146.39,146.34,0.72269805]
[1768427689392,7.51651628,146.41,146.36,0.72269805]
[1768427689592,0.68185518,146.4,146.36,0.72269805]
[1768427689803,7.51604137,146.42,146.36,0.72269805]
[1768427689977,0.68622181,146.42,146.37,0.72269805]
[1768427690576,7.51590023,146.42,146.37,0.72269805]
[1768427690899,0.68185518,146.41,146.35,7.52133659]
[1768427691071,6.82967842,146.42,146.32,0.68853401]
[1768427691072,0.68189841,146.39,146.32,0.68853401]
[1768427691274,0.6819823,146.35,146.3,9.34295303]
[1768427691485,0.6819823,146.35,146.3,7.52361605]
[1768427691880,3.18985329,146.35,146.31,0.68853401]
[1768427692874,0.6819823,146.35,146.31,0.68853401]
[1768427693389,6.39781517,146.36,146.31,7.52333206]
[1768427693585,7.0457855,146.36,146.31,0.68853401]
[1768427694099,13.87829076,146.36,146.31,0.68853401]
[1768427694297,6.39781517,146.35,146.31,0.68853401]
[1768427694499,6.39781517,146.37,146.32,0.68853401]
[1768427694695,7.1182641,146.38,146.32,0.68853401]
[1768427694908,0.72044893,146.38,146.32,6.83399995]
[1768427695200,0.72044893,146.35,146.3,0.68853401]
[1768427695387,0.64797033,146.34,146.3,0.68853401]
[1768427695583,6.39781517,146.35,146.3,0.68853401]
[1768427695905,7.0457855,146.35,146.3,7.52365254]
[1768427696106,0.64797033,146.35,146.3,0.68853401]
[1768427696287,7.11753931,146.34,146.3,0.68853401]
[1768427696607,0.64797033,146.35,146.3,7.52366335]
[1768427696793,7.1182641,146.34,146.29,0.68853401]
[1768427697094,0.72044893,146.34,146.3,0.68853401]
[1768427697308,0.64868787,146.31,146.28,15.93652839]
[1768427698082,7.1182641,146.33,146.28,16.6250624]
[1768427698296,7.1182641,146.33,146.28,23.46119288]
[1768427698506,0.72044893,146.33,146.29,7.52425778]
[1768427699988,7.5535737,146.35,146.3,0.68853401]
[1768427700183,6.39781517,146.34,146.3,0.68853401]
[1768427700403,6.39781517,146.32,146.28,16.6250624]
[1768427700815,7.11682895,146.31,146.28,15.93652839]
[1768427701194,0.72044893,146.33,146.28,16.6250624]
[1768427701396,7.1182641,146.33,146.28,16.6250624]
[1768427701803,0.64797033,146.32,146.28,23.46124552]
[1768427702017,0.64797033,146.32,146.28,16.6250624]
[1768427702312,13.95185666,146.34,146.29,0.68853401]
[1768427702516,0.72044893,146.35,146.29,0.68853401]
[1768427702698,0.72044893,146.35,146.3,0.68853401]
[1768427703411,7.55342769,146.35,146.3,0.68853401]
[1768427703603,13.95124286,146.35,146.3,0.68853401]
[1768427704105,7.1182641,146.35,146.31,0.68853401]
[1768427704302,0.64868787,146.31,146.21,3.562993]
[1768427704504,0.71901378,146.28,146.21,0.68853401]
[1768427704806,0.64939113,146.25,146.2,0.68853401]
[1768427705312,0.72044893,146.22,146.18,0.1]
[1768427705518,12.46,146.24,146.18,0.78853401]
[1768427705519,13.10797033,146.24,146.18,0.78853401]
[1768427705695,5.34408856,146.27,146.19,0.68853401]
[1768427705696,12.46,146.25,146.19,0.68853401]
[1768427706016,6.39781517,146.24,146.19,0.68853401]
[1768427706319,17.80408856,146.25,146.18,0.78853401]
[1768427706501,6.39781517,146.21,146.18,0.78853401]
[1768427706700,6.39781517,146.2,146.18,0.1]
[1768427707318,17.80408856,146.25,146.18,0.1]
[1768427707496,6.39781517,146.22,146.18,0.78853401]
[1768427707691,6.98638551,146.23,146.18,0.78853401]
[1768427707896,7.11694531,146.22,146.18,0.1]
[1768427708318,0.7178376,146.2,146.14,0.68853401]
[1768427708522,6.39781517,146.19,146.14,0.68853401]
[1768427708723,6.39781517,146.16,146.13,0.1]
[1768427709029,6.39781517,146.14,146.13,0.1]
[1768427709198,6.39781517,146.15,146.1,0.68853401]
[1768427709506,6.39781517,146.17,146.11,0.68853401]
[1768427709911,36.39817111,146.21,146.12,0.68853401]
[1768427710120,6.39781517,146.18,146.12,0.68853401]
[1768427710413,7.1182641,146.17,146.12,0.68853401]
[1768427710717,0.72044893,146.17,146.12,0.68853401]
[1768427710905,6.92698552,146.18,146.12,0.68853401]
[1768427711105,6.92887918,146.16,146.1,0.68853401]
[1768427711323,0.53291998,146.14,146.08,0.68853401]
[1768427711525,0.71482401,146.13,146.08,0.68853401]
[1768427711700,7.11263918,146.13,146.08,0.68853401]
[1768427712023,0.71482401,146.13,146.08,0.68853401]
[1768427712225,7.56259269,146.16,146.09,0.68853401]
[1768427712455,0.72044893,146.16,146.1,0.68853401]
[1768427712613,7.1182641,146.16,146.11,0.68853401]
[1768427712804,0.72044893,146.16,146.11,0.68853401]
[1768427713119,7.11635131,146.14,146.08,0.68853401]
[1768427713323,6.39781517,146.13,146.08,0.68853401]
[1768427713520,6.84189526,146.16,146.08,0.68853401]
[1768427713703,6.39781517,146.18,146.12,0.68853401]
[1768427714223,6.84102618,146.18,146.13,0.68853401]
[1768427714426,6.84102618,146.18,146.11,0.68853401]
[1768427714606,36.40027535,146.2,146.13,0.68853401]
[1768427714800,6.39781517,146.17,146.13,0.68853401]
[1768427715117,6.39781517,146.18,146.13,0.68853401]
[1768427715799,6.39781517,146.18,146.11,6.39781517]
[1768427715800,6.39781517,146.15,146.11,0.68853401]
[1768427715998,6.39781517,146.15,146.06,12.46]
[1768427715999,6.39781517,146.14,146.09,0.68853401]
[1768427716402,13.24061501,146.14,146.08,6.39781517]
[1768427716605,0.72044893,146.14,146.08,6.39781517]
[1768427716808,7.1182641,146.14,146.06,29.57541293]
[1768427717007,7.1182641,146.14,146.08,6.39781517]
[1768427717428,7.1182641,146.14,146.06,17.11541293]
[1768427717639,7.1182641,146.14,146.07,6.39781517]
[1768427717813,7.1182641,146.14,146.08,6.84519518]
[1768427717814,0.49946824,146.13,146.08,6.84519518]
[1768427718127,0.49946824,146.13,146.08,13.24301035]
[1768427718428,0.49946824,146.13,146.09,6.39781517]
[1768427718631,0.49946824,146.13,146.08,7.08634918]
[1768427718933,0.49946824,146.13,146.08,0.68853401]
[1768427719132,0.49946824,146.13,146.08,7.08634918]
[1768427719442,12.95946824,146.16,146.11,0.68853401]
[1768427720831,26.19917186,146.16,146.11,0.68853401]
[1768427721031,13.73917186,146.16,146.11,0.68853401]
[1768427721339,0.49946824,146.16,146.12,0.66797555]
[1768427721639,6.89728341,146.16,146.11,0.66797555]
[1768427722328,6.89728341,146.16,146.11,7.51204984]
[1768427722521,12.48,146.15,146.12,0.66797555]
[1768427722717,6.9610431,146.17,146.12,7.51152343]
[1768427722930,12.48,146.16,146.13,0.66797555]
[1768427723225,6.9610431,146.18,146.11,6.39781517]
[1768427723406,13.80207346,146.18,146.11,6.39781517]
[1768427723609,12.48,146.17,146.11,6.39781517]
[1768427724017,13.1360452,146.17,146.11,6.39781517]
[1768427724223,13.1360452,146.17,146.1,17.11152025]
[1768427724424,13.1360452,146.17,146.11,13.24167049]
[1768427725011,0.6560452,146.17,146.11,13.24167049]
[1768427725210,12.48,146.16,146.12,0.66797555]
[1768427725615,13.1360452,146.16,146.12,0.66797555]
[1768427725820,13.1360452,146.16,146.11,7.51183087]
[1768427726123,0.6560452,146.13,146.09,0.66797555]
[1768427726436,12.48,146.12,146.08,6.84524979]
[1768427726622,0.6560452,146.13,146.09,7.5130017]
[1768427726939,13.1360452,146.13,146.09,7.5130017]
[1768427727135,7.49835115,146.15,146.1,0.66797555]
[1768427727340,13.1360452,146.14,146.1,0.66797555]
[1768427728538,0.6560452,146.15,146.11,0.66797555]
[1768427728835,12.48,146.14,146.11,0.66797555]
[1768427729239,42.27427863,146.3,146.11,0.66797555]
[1768427729240,0.6560452,146.2,146.14,0.66797555]
[1768427729426,0.6560452,146.2,146.13,6.39781517]
[1768427729427,12.48,146.19,146.15,7.06579072]
[1768427729634,13.1360452,146.19,146.15,0.66797555]
[1768427730650,0.6560452,146.19,146.15,0.66797555]
[1768427731148,13.1360452,146.19,146.15,0.66797555]
[1768427731736,0.6560452,146.19,146.15,0.66797555]
[1768427731943,13.1360452,146.19,146.15,0.66797555]
[1768427732348,0.6560452,146.19,146.14,13.24044084]
[1768427732537,0.6560452,146.19,146.15,13.9080501]
[1768427733045,0.6560452,146.19,146.15,7.06579072]
[1768427733449,0.6560452,146.21,146.16,6.39781517]
[1768427733638,13.1360452,146.21,146.16,7.06579072]
[1768427733837,13.1360452,146.21,146.17,13.23916428]
[1768427734046,13.1360452,146.21,146.17,13.90713983]
[1768427734224,0.6560452,146.21,146.17,13.90713983]
[1768427734952,0.6560452,146.21,146.16,7.50960804]
[1768427735128,0.6560452,146.21,146.16,13.90742321]
[1768427736454,0.6560452,146.21,146.17,0.66797555]
[1768427737446,0.6560452,146.22,146.18,7.06579072]
[1768427737760,0.6560452,146.26,146.21,0.66797555]
[1768427737952,0.6560452,146.26,146.22,0.66797555]
[1768427738440,0.6560452,146.26,146.22,13.90462214]
[1768427738639,0.6560452,146.27,146.22,0.66797555]
[1768427739456,0.6560452,146.26,146.22,0.66797555]
[1768427740134,0.6560452,146.26,146.22,7.06579072]
[1768427741135,2.02668192,146.3,146.24,0.66797555]
[1768427741475,2.02668192,146.3,146.22,6.83898555]
[1768427741476,12.46,146.32,146.28,7.06579072]
[1768427741751,7.49026458,146.33,146.28,7.06579072]
[1768427741752,0.6560452,146.33,146.28,7.06579072]
[1768427741953,0.6560452,146.33,146.29,6.39781517]
[1768427742658,0.6560452,146.32,146.27,0.66797555]
[1768427742962,0.6560452,146.32,146.27,7.06579072]
[1768427743131,0.6560452,146.32,146.28,6.39781517]
[1768427743744,7.48956263,146.34,146.29,7.06579072]
[1768427744132,0.6560452,146.33,146.29,7.06579072]
[1768427744646,0.6560452,146.33,146.28,6.39781517]
[1768427744955,0.6560452,146.33,146.28,7.06579072]
[1768427745250,0.6560452,146.33,146.3,6.39781517]
[1768427745551,0.6560452,146.33,146.3,6.36781517]
[1768427745930,0.6560452,146.34,146.31,6.39781517]
[1768427746134,0.6560452,146.34,146.3,6.39781517]
[1768427747436,7.48954953,146.34,146.3,6.39781517]
[1768427750240,7.48954953,146.34,146.29,0.66797555]
[1768427750460,7.48954953,146.34,146.29,7.06579072]
[1768427751442,0.67925142,146.33,146.29,7.06579072]
[1768427751647,0.67925142,146.33,146.29,6.39781517]
[1768427752359,7.51321872,146.33,146.29,6.39781517]
[1768427753465,7.51321872,146.33,146.3,10.39655006]
[1768427754339,0.67925142,146.32,146.29,10.39655006]
[1768427754658,0.67925142,146.32,146.28,11.0968158]
[1768427755542,7.51360047,146.32,146.28,0.70026574]
[1768427759551,0.67925142,146.32,146.28,0.70026574]
[1768427760169,11.07580148,146.35,146.29,0.70026574]
[1768427760351,11.07580148,146.35,146.3,0.70026574]
[1768427760680,0.67925142,146.34,146.3,0.70026574]
[1768427760856,0.67925142,146.36,146.3,0.70026574]
[1768427761052,0.67925142,146.33,146.26,6.83669972]
[1768427761255,11.07580148,146.32,146.27,0.70026574]
[1768427761457,0.67925142,146.3,146.25,0.70026574]
[1768427761973,0.67925142,146.3,146.26,0.70026574]
[1768427762860,0.67925142,146.29,146.25,0.70026574]
[1768427763055,0.67925142,146.29,146.25,7.53778366]
[1768427763575,17.91156786,146.29,146.25,0.70026574]
[1768427764163,0.67925142,146.26,146.22,6.838815]
[1768427764478,0.67925142,146.26,146.22,7.53908074]
[1768427764984,0.67925142,146.26,146.23,6.83842065]
[1768427765375,0.67925142,146.27,146.23,7.53868639]
[1768427765553,0.67925142,146.27,146.23,0.70026574]
[1768427765875,0.67925142,146.27,146.23,7.53878008]
[1768427766079,0.67925142,146.28,146.24,0.70026574]
[1768427766656,11.07580148,146.28,146.24,0.70026574]
[1768427767975,0.67925142,146.27,146.22,0.70026574]
[1768427768170,0.67925142,146.27,146.23,6.83850941]
[1768427768363,0.67925142,146.27,146.23,7.53877515]
[1768427768749,10.39655006,146.28,146.24,0.70026574]
[1768427768953,0.67925142,146.29,146.24,7.53825088]
[1768427769179,0.67925142,146.29,146.25,0.70026574]
[1768427769957,0.67925142,146.29,146.25,7.5378019]
[1768427771075,11.07580148,146.3,146.26,0.70026574]
[1768427771675,0.67925142,146.3,146.26,0.70026574]
[1768427771856,11.07580148,146.3,146.26,0.70026574]
[1768427773156,10.39655006,146.27,146.23,0.70026574]
[1768427773376,11.07580148,146.28,146.23,0.70026574]
[1768427773580,6.83546849,146.3,146.23,0.70026574]
[1768427773581,0.67925142,146.27,146.23,0.70026574]
[1768427774661,17.91252113,146.27,146.22,7.5391839]
[1768427774858,11.07580148,146.27,146.23,0.70026574]
[1768427776069,11.07580148,146.27,146.17,0.70026574]
[1768427776070,0.67925142,146.25,146.17,0.70026574]
[1768427776379,10.39655006,146.24,146.2,0.70026574]
[1768427776561,17.91395081,146.24,146.2,0.70026574]
[1768427776762,11.07580148,146.22,146.18,0.70026574]
[1768427777059,23.93333532,146.24,146.2,0.70026574]
[1768427777060,0.67925142,146.24,146.2,0.70026574]
[1768427777496,17.91395316,146.24,146.2,0.70026574]
[1768427777660,11.07580148,146.23,146.18,7.54098018]
[1768427777859,11.07580148,146.23,146.19,0.70026574]
[1768427778384,17.91395316,146.24,146.19,7.54065355]
[1768427779484,0.67925142,146.24,146.2,0.70026574]
[1768427780000,6.83751137,146.26,146.21,0.70026574]
[1768427780001,0.67925142,146.26,146.21,0.70026574]
[1768427780885,0.69510425,146.25,146.21,0.70026574]
[1768427783086,17.94819451,146.27,146.22,0.67104129]
[1768427783771,0.7148747,146.26,146.22,0.67104129]
[1768427784372,0.7148747,146.28,146.23,0.67104129]
[1768427784783,0.7148747,146.25,146.21,0.67104129]
[1768427786080,0.7148747,146.25,146.19,17.9079135]
[1768427786287,0.7148747,146.24,146.19,7.51136344]
[1768427786486,7.55219228,146.26,146.2,7.5108089]
[1768427786672,0.7148747,146.25,146.21,0.67104129]
[1768427787183,0.7148747,146.26,146.22,0.67104129]
[1768427788173,0.7148747,146.26,146.22,7.51002237]
[1768427788591,0.7148747,146.26,146.22,0.67104129]
[1768427791176,6.83678418,146.27,146.22,0.67104129]
[1768427791177,0.7148747,146.27,146.23,0.67104129]
[1768427791698,0.7148747,146.25,146.21,0.67104129]
[1768427792000,0.7148747,146.26,146.22,0.67104129]
[1768427792205,0.7148747,146.26,146.22,0.64104132]
[1768427792508,0.7148747,146.26,146.21,17.23570483]
[1768427792798,0.7148747,146.26,146.2,6.83980218]
[1768427792799,11.11142476,146.25,146.2,6.83980218]
[1768427792994,0.7148747,146.24,146.2,6.83980218]
[1768427793299,0.7148747,146.24,146.19,29.69675117]
[1768427793500,0.7148747,146.24,146.2,6.83986745]
[1768427794198,0.7148747,146.24,146.2,7.51090874]
[1768427797594,0.7148747,146.25,146.21,0.67104129]
[1768427798093,0.7148747,146.25,146.21,0.17104129]
[1768427798498,0.7148747,146.24,146.2,6.83986745]
[1768427800287,0.7148747,146.23,146.19,12.46]
[1768427800492,0.7148747,146.23,146.19,13.03706217]
[1768427801077,0.7148747,146.26,146.2,0.57706217]
[1768427801283,0.7148747,146.26,146.21,0.57706217]
[1768427801897,17.09106693,146.28,146.19,19.30032366]
[1768427801898,0.7148747,146.22,146.19,12.46]
[1768427802284,0.7148747,146.23,146.19,13.03706217]
[1768427803097,0.7148747,146.23,146.19,13.00706218]
[1768427804997,0.7148747,146.23,146.19,12.43000001]
[1768427805680,0.7148747,146.23,146.19,19.27036662]
[1768427806103,0.7148747,146.23,146.19,19.84742879]
[1768427807196,0.7148747,146.23,146.19,12.46]
[1768427807902,0.7148747,146.23,146.19,13.03706217]
[1768427808104,0.7148747,146.23,146.19,19.87738646]
[1768427808801,0.7148747,146.22,146.19,12.46]
[1768427808999,0.7148747,146.21,146.19,12.46]
[1768427809400,0.7148747,146.22,146.19,12.46]
[1768427811020,0.71271907,146.23,146.19,19.87738655]
[1768427811216,0.71271907,146.23,146.19,23.80109945]
[1768427811511,0.71271907,146.23,146.19,19.87738655]
[1768427812116,3.9237129,146.28,146.22,0.57706217]
[1768427812409,0.71271907,146.27,146.22,13.03706217]
[1768427812709,34.16709517,146.34,146.25,0.57706217]
[1768427812710,0.71271907,146.3,146.25,0.57706217]
[1768427813411,3.9237129,146.32,146.26,0.66402734]
[1768427813612,54.99790903,146.45,146.3,4.58774024]
[1768427813613,0.45500001,146.4,146.3,4.58774024]
[1768427813815,3.9237129,146.36,146.3,0.66402734]
[1768427814496,10.75619699,146.36,146.3,7.49929521]
[1768427814692,10.75619699,146.36,146.3,11.42300811]
[1768427815310,6.83248409,146.36,146.31,0.66402734]
[1768427815495,0.71271907,146.35,146.31,0.66402734]
[1768427816088,0.91271907,146.39,146.35,0.66402734]
[1768427816322,0.2,146.39,146.36,3.17140552]
[1768427816497,0.2,146.39,146.36,0.66402734]
[1768427816808,3.22009725,146.42,146.38,0.66402734]
[1768427817014,0.71271907,146.42,146.36,0.66402734]
[1768427817187,6.82923453,146.43,146.36,0.66402734]
[1768427817188,3.22009725,146.41,146.36,0.66402734]
[1768427818497,0.71271907,146.41,146.36,0.66402734]
[1768427818697,7.54285659,146.41,146.36,0.66402734]
[1768427818913,0.71271907,146.4,146.36,0.66402734]
[1768427822112,3.22009725,146.4,146.36,0.66402734]
[1768427822417,0.71271907,146.4,146.36,0.66402734]
[1768427822612,3.22009725,146.39,146.34,6.83340166]
[1768427822813,6.82966807,146.42,146.34,6.83340166]
[1768427823010,3.22009725,146.43,146.36,2.50737818]
[1768427823211,0.71271907,146.43,146.36,2.50737818]
[1768427823408,3.22009725,146.43,146.36,2.50737818]
[1768427824122,3.22009725,146.43,146.37,6.83200109]
[1768427824622,0.71271907,146.42,146.37,6.83200109]
[1768427825010,0.71271907,146.42,146.38,0.36478124]
[1768427825403,2.50737818,146.43,146.38,0.36478124]
[1768427825715,3.22009725,146.43,146.38,0.36478124]
[1768427826504,15.68009725,146.43,146.38,7.1960907]
[1768427827112,13.17271907,146.43,146.38,7.1960907]
[1768427827316,15.68009725,146.43,146.38,7.1960907]
[1768427827618,0.71271907,146.42,146.38,7.1960907]
[1768427829118,13.17271907,146.43,146.38,7.1960907]
[1768427829302,0.91271907,146.45,146.39,0.36478124]
[1768427829617,0.2,146.45,146.41,0.36478124]
[1768427829812,3.42009725,146.45,146.41,0.36478124]
[1768427830504,0.71271907,146.43,146.39,0.36478124]
[1768427830901,0.71271907,146.43,146.4,6.83060109]
[1768427832910,0.71271907,146.43,146.39,7.19573094]
[1768427833109,3.22009725,146.44,146.39,7.19573094]
[1768427835628,0.71271907,146.39,146.35,6.83259225]
[1768427835806,3.22009725,146.39,146.35,6.83259225]
[1768427836013,0.71271907,146.39,146.36,6.83241321]
[1768427836812,3.22009725,146.4,146.36,6.83241321]
[1768427837929,0.71271907,146.4,146.36,6.83241321]
[1768427838632,0.71271907,146.4,146.36,9.70457263]
[1768427838809,12.46,146.41,146.36,9.70457263]
[1768427839322,12.46,146.41,146.37,0.36478124]
[1768427842920,13.14642911,146.41,146.37,0.36478124]
[1768427844328,0.68642911,146.4,146.36,7.19719445]
[1768427844535,0.68642911,146.4,146.36,9.70457263]
[1768427845615,13.14642911,146.41,146.37,9.70409922]
[1768427847028,13.14642911,146.41,146.37,7.19672104]
[1768427847227,13.14642911,146.41,146.37,0.36478124]
[1768427848336,0.68642911,146.41,146.37,0.36478124]
[1768427848543,13.14642911,146.41,146.37,0.36478124]
[1768427848945,0.68642911,146.4,146.36,9.70445135]
[1768427850831,0.68642911,146.42,146.39,2.50737818]
[1768427851036,13.14642911,146.42,146.39,2.50737818]
[1768427851437,13.14642911,146.44,146.4,2.50737818]
[1768427852243,12.46,146.44,146.41,0.36478124]
[1768427852629,0.88642911,146.45,146.41,2.87215942]
[1768427852823,13.34642911,146.45,146.42,2.50737818]
[1768427853041,0.88642911,146.45,146.42,2.50737818]
[1768427854329,0.88642911,146.45,146.41,9.70203865]
[1768427856251,0.88642911,146.45,146.42,2.50737818]
[1768427856650,0.88642911,146.45,146.42,9.33702545]
[1768427857447,0.88642911,146.45,146.43,2.50737818]
[1768427859131,0.88642911,146.45,146.43,9.33648299]
[1768427859450,0.2,146.45,146.43,9.33648299]
[1768427859646,0.2,146.45,146.43,9.70126423]
[1768427860039,0.2,146.45,146.43,9.33648299]
[1768427861859,0.68642911,146.46,146.44,2.50737818]
[1768427862359,0.68642911,146.46,146.43,9.33648299]
[1768427864346,0.2,146.48,146.45,2.50737818]
[1768427864347,13.32642911,146.48,146.45,2.50737818]
[1768427865433,0.88642911,146.48,146.44,9.70089213]
[1768427865661,13.32642911,146.48,146.44,9.70089213]
[1768427866241,0.68642911,146.47,146.44,9.70089213]
[1768427867261,0.68642911,146.47,146.44,7.19351395]
[1768427867463,0.68642911,146.47,146.44,6.82873271]
[1768427867974,0.68642911,146.47,146.43,9.70127412]
[1768427868459,0.68642911,146.46,146.4,17.44088568]
[1768427868774,13.12642911,146.45,146.4,19.94826386]
[1768427868975,13.12642911,146.45,146.41,6.82984716]
[1768427869275,13.12642911,146.45,146.41,9.33722534]